fUSD/lending_fUSD_20260626
["ID","MTS","AMOUNT","RATE_DAILY","PERIOD"]
[426485514,1782453042000,-1914.48,0.00016413,2]
[426485450,1782453042000,-500.0,0.00014999,2]
[426485456,1782453042000,-848684.84396155,0.00015,2]
[426485455,1782453042000,-910.0,0.00015,2]
[426485454,1782453042000,-500.0,0.00014999,2]
[426485457,1782453042000,-576060.95610387,0.00015,2]
[426485453,1782453042000,-500.0,0.00014999,2]
[426485451,1782453042000,-500.0,0.00014999,2]
[426485452,1782453042000,-500.0,0.00014999,2]
[426485459,1782453042000,-918.0,0.00015,2]
[426485458,1782453042000,-899.0,0.00015,2]
[426485461,1782453042000,-905.0,0.00015,2]
[426485460,1782453042000,-152.0,0.00015,2]
[426485478,1782453042000,-229.78813493,0.00015398,2]
[426485463,1782453042000,-213.0,0.00015,2]
[426485466,1782453042000,-151.0,0.00015,2]
[426485465,1782453042000,-166.37940469,0.00015,2]
[426485467,1782453042000,-151.0,0.00015068,2]
[426485468,1782453042000,-150.0,0.00015206,2]
[426485470,1782453042000,-150.0,0.00015206,2]
[426485469,1782453042000,-150.0,0.00015206,2]
[426485471,1782453042000,-150.0,0.00015206,2]
[426485472,1782453042000,-150.0,0.00015206,2]
[426485473,1782453042000,-150.0,0.00015206,2]
[426485474,1782453042000,-150.0,0.00015206,2]
[426485476,1782453042000,-1914.48,0.00015294,2]
[426485479,1782453042000,-1500.0,0.00015643,2]
[426485481,1782453042000,-1914.48,0.00015667,2]
[426485464,1782453042000,-302.46,0.00015,2]
[426485512,1782453042000,-150.342,0.00016395,2]
[426485550,1782453042000,-600.12081757,0.00016438,2]
[426485513,1782453042000,-181.596,0.00016395,2]
[426485555,1782453042000,-500.0,0.00016438,2]
[426485554,1782453042000,-500.0,0.00016438,2]
[426485557,1782453042000,-500.0,0.00016438,2]
[426485560,1782453042000,-500.0,0.00016438,2]
[426485562,1782453042000,-450.0,0.00016438,2]
[426485563,1782453042000,-500.0,0.00016438,2]
[426485559,1782453042000,-500.0,0.00016438,2]
[426485561,1782453042000,-500.0,0.00016438,2]
[426485556,1782453042000,-500.0,0.00016438,2]
[426485558,1782453042000,-500.0,0.00016438,2]
[426485564,1782453042000,-500.0,0.00016438,2]
[426485565,1782453042000,-500.0,0.00016438,2]
[426485566,1782453042000,-500.0,0.00016438,2]
[426485549,1782453042000,-500.0,0.00016438,2]
[426485568,1782453042000,-500.0,0.00016438,2]
[426485570,1782453042000,-42915.57,0.00016474,2]
[426485578,1782453042000,-222.27,0.00017235,2]
[426485579,1782453042000,-3982.11145078,0.000173,2]
[426485569,1782453042000,-151.0,0.00016438,2]
[426485573,1782453042000,-10000.0,0.00016598,2]
[426485572,1782453042000,-1500.0,0.00016551,2]
[426485571,1782453042000,-536.69,0.00016474,2]
[426485574,1782453042000,-171.92,0.00016712,2]
[426485577,1782453042000,-1500.0,0.00017099,2]
[426485576,1782453042000,-350.0,0.00017066,2]
[426485575,1782453042000,-1477.41,0.00016819,2]
[426485516,1782453042000,-500.0,0.00016438,2]
[426485581,1782453042000,-214.16212042,0.00017453,2]
[426485567,1782453042000,-500.0,0.00016438,2]
[426485537,1782453042000,-500.0,0.00016438,2]
[426485580,1782453042000,-3982.11145078,0.000174,2]
[426485543,1782453042000,-500.0,0.00016438,2]
[426485545,1782453042000,-500.0,0.00016438,2]
[426485517,1782453042000,-500.0,0.00016438,2]
[426485515,1782453042000,-500.0,0.00016438,2]
[426485519,1782453042000,-500.0,0.00016438,2]
[426485510,1782453042000,-243.435,0.00016395,2]
[426485518,1782453042000,-500.0,0.00016438,2]
[426485520,1782453042000,-500.0,0.00016438,2]
[426485521,1782453042000,-500.0,0.00016438,2]
[426485522,1782453042000,-500.0,0.00016438,2]
[426485524,1782453042000,-500.0,0.00016438,2]
[426485523,1782453042000,-500.0,0.00016438,2]
[426485528,1782453042000,-500.0,0.00016438,2]
[426485525,1782453042000,-500.0,0.00016438,2]
[426485532,1782453042000,-500.0,0.00016438,2]
[426485509,1782453042000,-150.0,0.00016395,2]
[426485531,1782453042000,-500.0,0.00016438,2]
[426485526,1782453042000,-500.0,0.00016438,2]
[426485552,1782453042000,-500.0,0.00016438,2]
[426485553,1782453042000,-500.0,0.00016438,2]
[426485551,1782453042000,-500.0,0.00016438,2]
[426485541,1782453042000,-500.0,0.00016438,2]
[426485547,1782453042000,-500.0,0.00016438,2]
[426485535,1782453042000,-500.0,0.00016438,2]
[426485533,1782453042000,-500.0,0.00016438,2]
[426485527,1782453042000,-500.0,0.00016438,2]
[426485530,1782453042000,-500.0,0.00016438,2]
[426485529,1782453042000,-500.0,0.00016438,2]
[426485539,1782453042000,-500.0,0.00016438,2]
[426485628,1782453043000,-350.0,0.00019201,2]
[426485629,1782453043000,-1500.0,0.00019291,2]
[426485624,1782453043000,-2361.16931348,0.00019,2]
[426485625,1782453043000,-350.0,0.00019045,2]
[426485609,1782453043000,-192.4601056,0.00018485,2]
[426485634,1782453043000,-1230.0,0.00019395,2]
[426485622,1782453043000,-500.0,0.0001877,2]
[426485611,1782453043000,-1392.92520606,0.000185,2]
[426485610,1782453043000,-3982.11145078,0.000185,2]
[426485614,1782453043000,-1392.92520606,0.000187,2]
[426485623,1782453043000,-3982.11145078,0.000189,2]
[426485633,1782453043000,-1277.0,0.00019395,2]
[426485644,1782453043000,-170.07,0.00019659,2]
[426485630,1782453043000,-220.95443116,0.00019382,2]
[426485631,1782453043000,-3563.0,0.00019395,2]
[426485632,1782453043000,-1361.0,0.00019395,2]
[426485635,1782453043000,-150.0,0.00019395,2]
[426485643,1782453043000,-1212.10832609,0.00019645,2]
[426485638,1782453043000,-150.0,0.00019395,2]
[426485639,1782453043000,-150.0,0.00019395,2]
[426485646,1782453043000,-500.0,0.0001977,2]
[426485642,1782453043000,-9916.24260584,0.00019645,2]
[426485636,1782453043000,-216.0,0.00019395,2]
[426485637,1782453043000,-150.0,0.00019395,2]
[426485612,1782453043000,-3982.11145078,0.000187,2]
[426485641,1782453043000,-252.0,0.00019452,2]
[426485627,1782453043000,-153.296407,0.00019178,2]
[426485607,1782453043000,-1477.41,0.00018348,2]
[426485597,1782453043000,-350.0,0.00018,2]
[426485618,1782453043000,-1500.0,0.00018743,2]
[426485645,1782453043000,-170.07,0.00019659,2]
[426485582,1782453043000,-210.16047974,0.00017453,2]
[426485583,1782453043000,-924.34,0.00017459,2]
[426485585,1782453043000,-1500.0,0.00017647,2]
[426485584,1782453043000,-3982.11145078,0.000176,2]
[426485587,1782453043000,-3982.11145078,0.000178,2]
[426485588,1782453043000,-350.0,0.00017855,2]
[426485589,1782453043000,-9916.24260584,0.00017935,2]
[426485586,1782453043000,-160.69102777,0.00017663,2]
[426485590,1782453043000,-1212.10832609,0.00017935,2]
[426485592,1782453043000,-152.93,0.00018,2]
[426485591,1782453043000,-221.36,0.00017936,2]
[426485594,1782453043000,-1392.92520606,0.00018,2]
[426485593,1782453043000,-3982.11145078,0.00018,2]
[426485595,1782453043000,-194.73666777,0.00018,2]
[426485596,1782453043000,-179.58,0.00018,2]
[426485598,1782453043000,-500.0,0.00018099,2]
[426485600,1782453043000,-1500.0,0.00018195,2]
[426485601,1782453043000,-1392.92520606,0.000182,2]
[426485599,1782453043000,-3982.11145078,0.000181,2]
[426485602,1782453043000,-310.0,0.000182,2]
[426485603,1782453043000,-290.0,0.000182,2]
[426485604,1782453043000,-316.0,0.000182,2]
[426485606,1782453043000,-3982.11145078,0.000183,2]
[426485616,1782453043000,-955.5,0.0001872,2]
[426485620,1782453043000,-1000.0,0.0001877,2]
[426485605,1782453043000,-223.59437418,0.00018233,2]
[426485608,1782453043000,-1392.92520606,0.000184,2]
[426485640,1782453043000,-3649.0,0.00019395,2]
[426485626,1782453043000,-20522.84,0.00019178,2]
[426485654,1782453043000,-151.0,0.00019839,2]
[426485697,1782453043000,-5539.0,0.0002,2]
[426485710,1782453043000,-280.0,0.0002,2]
[426485712,1782453043000,-2766.67,0.0002,2]
[426485732,1782453043000,-151.0,0.00020094,2]
[426485714,1782453043000,-155.0,0.0002,2]
[426485722,1782453043000,-1821.0,0.0002,2]
[426485728,1782453043000,-1071.0,0.0002,2]
[426485716,1782453043000,-272.0,0.0002,2]
[426485726,1782453043000,-322.0,0.0002,2]
[426485718,1782453043000,-200.0,0.0002,10]
[426485724,1782453043000,-533.0,0.0002,2]
[426485720,1782453043000,-1195.0,0.0002,2]
[426485736,1782453043000,-3480.73116696,0.00020113,2]
[426485734,1782453043000,-300.0,0.000201,10]
[426485738,1782453043000,-248.17472787,0.00020163,2]
[426485740,1782453043000,-700.0,0.00020173,2]
[426485752,1782453043000,-151.000014,0.00020548,2]
[426485751,1782453043000,-152.26330511,0.00020547,2]
[426485750,1782453043000,-498.47886567,0.000204,2]
[426485741,1782453043000,-498.47886567,0.000202,2]
[426485754,1782453043000,-150.0,0.0002058,2]
[426485753,1782453043000,-150.0,0.0002058,2]
[426485743,1782453043000,-519.34037523,0.00020387,2]
[426485749,1782453043000,-286.80323608,0.00020398,2]
[426485745,1782453043000,-3480.73116696,0.00020387,2]
[426485747,1782453043000,-1500.0,0.00020387,2]
[426485647,1782453043000,-1000.0,0.0001977,2]
[426485708,1782453043000,-343.0,0.0002,2]
[426485694,1782453043000,-225.013892,0.0002,2]
[426485730,1782453043000,-337.0,0.0002,2]
[426485692,1782453043000,-536.69,0.00019968,2]
[426485704,1782453043000,-348.0,0.0002,2]
[426485653,1782453043000,-151.0,0.00019839,2]
[426485652,1782453043000,-151.0,0.00019839,2]
[426485658,1782453043000,-151.0,0.00019839,2]
[426485648,1782453043000,-500.0,0.00019839,2]
[426485650,1782453043000,-151.0,0.00019839,2]
[426485651,1782453043000,-151.0,0.00019839,2]
[426485649,1782453043000,-151.0,0.00019839,2]
[426485657,1782453043000,-151.0,0.00019839,2]
[426485655,1782453043000,-151.0,0.00019839,2]
[426485661,1782453043000,-151.0,0.00019839,2]
[426485681,1782453043000,-154.19835409,0.00019839,2]
[426485664,1782453043000,-151.0,0.00019839,2]
[426485667,1782453043000,-151.0,0.00019839,2]
[426485656,1782453043000,-151.0,0.00019839,2]
[426485706,1782453043000,-1475.0,0.0002,2]
[426485675,1782453043000,-151.0,0.00019839,2]
[426485701,1782453043000,-400.0,0.0002,2]
[426485699,1782453043000,-498.47886567,0.0002,2]
[426485690,1782453043000,-1470.0,0.00019896,5]
[426485755,1782453043000,-150.0,0.0002058,2]
[426485683,1782453043000,-3480.73116696,0.00019839,2]
[426485687,1782453043000,-1188.0,0.00019896,5]
[426485677,1782453043000,-151.0,0.00019839,2]
[426485673,1782453043000,-151.0,0.00019839,2]
[426485670,1782453043000,-151.0,0.00019839,2]
[426485669,1782453043000,-151.0,0.00019839,2]
[426485679,1782453043000,-151.0,0.00019839,2]
[426485685,1782453043000,-1500.0,0.00019839,2]
[426485793,1782453044000,-3480.73116696,0.00021483,2]
[426485794,1782453044000,-1500.0,0.00021483,2]
[426485804,1782453044000,-166.0,0.00021918,2]
[426485797,1782453044000,-2766.67,0.00021568,2]
[426485795,1782453044000,-172.8,0.000215,7]
[426485790,1782453044000,-5485.57,0.0002137,2]
[426485801,1782453044000,-160.41402647,0.000219,2]
[426485799,1782453044000,-3480.73116696,0.00021757,2]
[426485792,1782453044000,-4177.7107361,0.00021481,2]
[426485791,1782453044000,-1058.28666352,0.000214,2]
[426485781,1782453044000,-322.0,0.00021,2]
[426485800,1782453044000,-1058.28666352,0.000219,2]
[426485805,1782453044000,-166.0,0.00021918,2]
[426485818,1782453044000,-533.0,0.00022,2]
[426485806,1782453044000,-500.0,0.00021999,2]
[426485796,1782453044000,-223.59437418,0.00021567,2]
[426485803,1782453044000,-5000.0,0.00021918,2]
[426485802,1782453044000,-830.50800477,0.00021917,2]
[426485807,1782453044000,-30452.81589004,0.00022,4]
[426485809,1782453044000,-1475.0,0.00022,2]
[426485810,1782453044000,-343.0,0.00022,2]
[426485815,1782453044000,-1195.0,0.00022,2]
[426485819,1782453044000,-152.810881,0.00022,2]
[426485813,1782453044000,-168.0,0.00022,2]
[426485812,1782453044000,-790.89,0.00022,2]
[426485808,1782453044000,-348.0,0.00022,2]
[426485814,1782453044000,-272.0,0.00022,2]
[426485784,1782453044000,-1058.28666352,0.000212,2]
[426485798,1782453044000,-1058.28666352,0.000216,2]
[426485788,1782453044000,-9916.24260584,0.00021354,2]
[426485760,1782453044000,-3480.73116696,0.00020661,2]
[426485787,1782453044000,-289.99397328,0.00021312,2]
[426485758,1782453044000,-289.74260554,0.0002058,2]
[426485816,1782453044000,-151.0,0.00022,2]
[426485762,1782453044000,-252.082926,0.00020821,2]
[426485763,1782453044000,-194.85915139,0.000209,2]
[426485759,1782453044000,-498.47886567,0.000206,2]
[426485761,1782453044000,-498.47886567,0.000208,2]
[426485757,1782453044000,-150.0,0.0002058,2]
[426485756,1782453044000,-150.0,0.0002058,2]
[426485765,1782453044000,-3480.73116696,0.00020935,2]
[426485764,1782453044000,-350.0,0.00020904,3]
[426485766,1782453044000,-1500.0,0.00020935,2]
[426485779,1782453044000,-1821.0,0.00021,2]
[426485768,1782453044000,-1058.28666352,0.00021,2]
[426485789,1782453044000,-1212.10832609,0.00021354,2]
[426485769,1782453044000,-15000.0,0.00021,2]
[426485767,1782453044000,-14755.59898906,0.00021,2]
[426485770,1782453044000,-6111.0,0.00021,2]
[426485772,1782453044000,-348.0,0.00021,2]
[426485775,1782453044000,-280.0,0.00021,2]
[426485776,1782453044000,-155.0,0.00021,2]
[426485773,1782453044000,-1475.0,0.00021,2]
[426485777,1782453044000,-272.0,0.00021,2]
[426485774,1782453044000,-343.0,0.00021,2]
[426485780,1782453044000,-533.0,0.00021,2]
[426485782,1782453044000,-1071.0,0.00021,2]
[426485785,1782453044000,-3480.73116696,0.00021209,2]
[426485783,1782453044000,-337.0,0.00021,2]
[426485786,1782453044000,-466.41440324,0.0002127,2]
[426485778,1782453044000,-1195.0,0.00021,2]
[426485811,1782453044000,-280.0,0.00022,2]
[426485771,1782453044000,-1111.0,0.00021,2]
[426485821,1782453044000,-1071.0,0.00022,2]
[426485855,1782453044000,-348.0,0.00023,2]
[426485850,1782453044000,-1058.28666352,0.000227,2]
[426485848,1782453044000,-42915.57,0.00022691,2]
[426485861,1782453044000,-1821.0,0.00023,2]
[426485860,1782453044000,-1195.0,0.00023,2]
[426485857,1782453044000,-343.0,0.00023,2]
[426485859,1782453044000,-272.0,0.00023,2]
[426485858,1782453044000,-280.0,0.00023,2]
[426485868,1782453044000,-3480.73116696,0.00023127,2]
[426485862,1782453044000,-533.0,0.00023,2]
[426485863,1782453044000,-322.0,0.00023,2]
[426485865,1782453044000,-337.0,0.00023,2]
[426485864,1782453044000,-1071.0,0.00023,2]
[426485849,1782453044000,-152.380904,0.00022692,2]
[426485869,1782453044000,-1500.0,0.00023127,2]
[426485870,1782453044000,-2766.67,0.00023136,7]
[426485866,1782453044000,-9916.24260584,0.00023063,2]
[426485871,1782453044000,-150.0,0.00023288,2]
[426485872,1782453044000,-150.0,0.00023288,2]
[426485875,1782453044000,-150.0,0.00023288,2]
[426485817,1782453044000,-1821.0,0.00022,2]
[426485879,1782453044000,-150.0,0.00023288,2]
[426485873,1782453044000,-150.0,0.00023288,2]
[426485878,1782453044000,-150.0,0.00023288,2]
[426485876,1782453044000,-150.0,0.00023288,2]
[426485880,1782453044000,-150.0,0.00023288,2]
[426485877,1782453044000,-150.0,0.00023288,2]
[426485881,1782453044000,-150.0,0.00023288,2]
[426485867,1782453044000,-1212.10832609,0.00023063,2]
[426485854,1782453044000,-1058.28666352,0.00023,2]
[426485874,1782453044000,-150.0,0.00023288,2]
[426485847,1782453044000,-955.5,0.00022691,2]
[426485851,1782453044000,-500.0,0.00022849,2]
[426485820,1782453044000,-322.0,0.00022,2]
[426485823,1782453044000,-3480.73116696,0.00022031,2]
[426485822,1782453044000,-337.0,0.00022,2]
[426485825,1782453044000,-1058.28666352,0.000221,2]
[426485829,1782453044000,-177.97,0.00022381,2]
[426485826,1782453044000,-1058.28666352,0.000223,2]
[426485827,1782453044000,-3480.73116696,0.00022305,2]
[426485830,1782453044000,-3563.0,0.00022395,2]
[426485824,1782453044000,-1500.0,0.00022031,2]
[426485831,1782453044000,-1361.0,0.00022395,2]
[426485833,1782453044000,-1229.0,0.00022395,2]
[426485835,1782453044000,-216.0,0.00022395,2]
[426485832,1782453044000,-1277.0,0.00022395,2]
[426485828,1782453044000,-221.55,0.00022381,2]
[426485843,1782453044000,-1058.28666352,0.000225,2]
[426485853,1782453044000,-1020.78514272,0.00023,2]
[426485836,1782453044000,-150.0,0.00022395,2]
[426485852,1782453044000,-3480.73116696,0.00022853,2]
[426485845,1782453044000,-1500.0,0.00022579,2]
[426485846,1782453044000,-350.0,0.00022651,4]
[426485841,1782453044000,-745.21,0.00022466,2]
[426485856,1782453044000,-1475.0,0.00023,2]
[426485838,1782453044000,-200.61084828,0.0002245,2]
[426485839,1782453044000,-403.93,0.00022466,2]
[426485834,1782453044000,-150.0,0.00022395,2]
[426485844,1782453044000,-3480.73116696,0.00022579,2]
[426485840,1782453044000,-300.51,0.00022466,2]
[426485842,1782453044000,-335.97473759,0.00022489,2]
[426485837,1782453044000,-3649.0,0.00022395,2]
[426485908,1782453045000,-162.96187604,0.00023637,2]
[426485914,1782453045000,-154.11916925,0.00023637,2]
[426485910,1782453045000,-178.62885449,0.00023637,2]
[426485909,1782453045000,-151.18267052,0.00023637,2]
[426485907,1782453045000,-196.10125468,0.00023637,2]
[426485906,1782453045000,-171.14960166,0.00023637,2]
[426485913,1782453045000,-189.57219111,0.00023637,2]
[426485904,1782453045000,-243.39172503,0.00023636,2]
[426485911,1782453045000,-202.35078326,0.00023637,2]
[426485912,1782453045000,-196.22336126,0.00023637,2]
[426485927,1782453045000,-152.76863961,0.00023639,2]
[426485920,1782453045000,-209.72366592,0.00023639,2]
[426485921,1782453045000,-291.98157637,0.00023639,2]
[426485922,1782453045000,-178.34684062,0.00023639,2]
[426485923,1782453045000,-183.05965328,0.00023639,2]
[426485924,1782453045000,-173.77897543,0.00023639,2]
[426485929,1782453045000,-168.05791575,0.00023641,2]
[426485918,1782453045000,-260.47149169,0.00023639,2]
[426485925,1782453045000,-208.20923454,0.00023639,2]
[426485916,1782453045000,-162.81946463,0.00023639,2]
[426485917,1782453045000,-154.64977951,0.00023639,2]
[426485905,1782453045000,-150.82301161,0.00023636,2]
[426485893,1782453045000,-150.0,0.00023288,2]
[426485898,1782453045000,-150.0,0.00023288,2]
[426485882,1782453045000,-150.0,0.00023288,2]
[426485884,1782453045000,-150.0,0.00023288,2]
[426485886,1782453045000,-150.0,0.00023288,2]
[426485883,1782453045000,-150.0,0.00023288,2]
[426485890,1782453045000,-150.0,0.00023288,2]
[426485885,1782453045000,-150.0,0.00023288,2]
[426485891,1782453045000,-150.0,0.00023288,2]
[426485889,1782453045000,-150.0,0.00023288,2]
[426485888,1782453045000,-150.0,0.00023288,2]
[426485915,1782453045000,-151.3652174,0.00023637,2]
[426485887,1782453045000,-150.0,0.00023288,2]
[426485895,1782453045000,-150.0,0.00023288,2]
[426485896,1782453045000,-150.0,0.00023288,2]
[426485899,1782453045000,-150.0,0.00023288,2]
[426485894,1782453045000,-150.0,0.00023288,2]
[426485897,1782453045000,-150.0,0.00023288,2]
[426485902,1782453045000,-2210.07937246,0.000235,2]
[426485900,1782453045000,-3480.73116696,0.00023401,2]
[426485901,1782453045000,-378.07250243,0.00023485,2]
[426485903,1782453045000,-167.77024808,0.00023636,2]
[426485892,1782453045000,-150.0,0.00023288,2]
[426485928,1782453045000,-193.043726,0.00023639,2]
[426485931,1782453045000,-168.94343293,0.00023641,2]
[426485930,1782453045000,-157.54247743,0.00023641,2]
[426485962,1782453045000,-353.44,0.0002411,2]
[426485964,1782453045000,-262.94,0.0002411,2]
[426485967,1782453045000,-652.06,0.0002411,2]
[426485977,1782453045000,-3480.73116696,0.00024223,2]
[426485973,1782453045000,-2013.89,0.00024174,2]
[426485975,1782453045000,-200.0,0.00024187,2]
[426485971,1782453045000,-1977.35,0.00024174,2]
[426485969,1782453045000,-180.09989165,0.00024143,2]
[426485979,1782453045000,-1500.0,0.00024223,2]
[426485960,1782453045000,-337.0,0.00024,2]
[426485982,1782453045000,-350.0,0.00024291,5]
[426485999,1782453045000,-441.89399485,0.00024502,2]
[426485996,1782453045000,-5241.3,0.00024467,2]
[426485994,1782453045000,-5241.3,0.00024414,2]
[426485998,1782453045000,-3480.73116696,0.00024497,2]
[426485997,1782453045000,-5241.31,0.00024497,2]
[426485987,1782453045000,-5241.3,0.0002431,2]
[426485991,1782453045000,-5241.31,0.00024372,2]
[426485989,1782453045000,-5241.3,0.00024362,2]
[426485926,1782453045000,-200.50214495,0.00023639,2]
[426485984,1782453045000,-5241.31,0.0002431,2]
[426485958,1782453045000,-1071.0,0.00024,2]
[426485995,1782453045000,-5241.31,0.00024435,2]
[426485951,1782453045000,-1195.0,0.00024,2]
[426485933,1782453045000,-170.94335944,0.00023641,2]
[426485956,1782453045000,-322.0,0.00024,2]
[426485935,1782453045000,-196.45123313,0.00023641,2]
[426485934,1782453045000,-178.33793545,0.00023641,2]
[426485936,1782453045000,-157.08913433,0.00023641,2]
[426485932,1782453045000,-170.53078674,0.00023641,2]
[426485937,1782453045000,-190.2502075,0.00023641,2]
[426485939,1782453045000,-161.22859369,0.00023673,2]
[426485941,1782453045000,-3480.73116696,0.00023675,2]
[426485940,1782453045000,-172.1352401,0.00023673,2]
[426485938,1782453045000,-175.57177388,0.00023673,2]
[426485943,1782453045000,-518.41,0.000237,14]
[426485942,1782453045000,-1500.0,0.00023675,2]
[426485946,1782453045000,-348.0,0.00024,2]
[426485944,1782453045000,-1294.0,0.00023833,5]
[426485950,1782453045000,-272.0,0.00024,2]
[426485952,1782453045000,-1821.0,0.00024,2]
[426485947,1782453045000,-1475.0,0.00024,2]
[426485945,1782453045000,-3480.73116696,0.00023949,2]
[426485953,1782453045000,-533.0,0.00024,2]
[426485948,1782453045000,-343.0,0.00024,2]
[426485949,1782453045000,-280.0,0.00024,2]
[426486038,1782453046000,-706.41739415,0.00024894,2]
[426486040,1782453046000,-325.92375208,0.00024894,2]
[426486049,1782453046000,-302.7304348,0.00024894,2]
[426486039,1782453046000,-392.20250935,0.00024894,2]
[426486032,1782453046000,-5241.31,0.00024809,2]
[426486036,1782453046000,-301.64602323,0.00024893,2]
[426486033,1782453046000,-348.05738633,0.00024893,2]
[426486034,1782453046000,-335.54049616,0.00024893,2]
[426486037,1782453046000,-342.29920333,0.00024894,2]
[426486041,1782453046000,-302.36534104,0.00024894,2]
[426486028,1782453046000,-3480.73116696,0.00024771,2]
[426486035,1782453046000,-486.78345007,0.00024893,2]
[426486042,1782453046000,-357.25770898,0.00024894,2]
[426486051,1782453046000,-325.63892926,0.00024897,2]
[426486045,1782453046000,-392.44672253,0.00024894,2]
[426486047,1782453046000,-179.41487221,0.00024894,2]
[426486043,1782453046000,-404.70156652,0.00024894,2]
[426486046,1782453046000,-379.14438222,0.00024894,2]
[426486044,1782453046000,-175.81432748,0.00024894,2]
[426486050,1782453046000,-193.87269961,0.00024894,2]
[426486052,1782453046000,-309.29955903,0.00024897,2]
[426486053,1782453046000,-520.94298338,0.00024897,2]
[426486056,1782453046000,-366.11930656,0.00024897,2]
[426486060,1782453046000,-336.11583151,0.00024899,2]
[426486054,1782453046000,-419.44733183,0.00024897,2]
[426486031,1782453046000,-1212.10832609,0.00024772,2]
[426486048,1782453046000,-308.2383385,0.00024894,2]
[426486030,1782453046000,-9916.24260584,0.00024772,2]
[426486012,1782453046000,-262.725384,0.00024658,2]
[426486027,1782453046000,-5241.31,0.00024747,2]
[426486061,1782453046000,-341.06157348,0.00024899,2]
[426486000,1782453046000,-5241.3,0.00024519,2]
[426486001,1782453046000,-790.89,0.00024541,7]
[426486013,1782453046000,-262.725384,0.00024658,2]
[426486002,1782453046000,-5241.31,0.00024559,2]
[426486005,1782453046000,-5241.3,0.00024623,2]
[426486003,1782453046000,-5241.3,0.00024571,2]
[426486004,1782453046000,-5241.31,0.00024622,2]
[426486009,1782453046000,-153.246406,0.00024658,2]
[426486010,1782453046000,-262.725384,0.00024658,2]
[426486011,1782453046000,-262.725384,0.00024658,2]
[426486007,1782453046000,-1000.0,0.00024658,2]
[426486006,1782453046000,-187.73,0.00024658,2]
[426486008,1782453046000,-755.74,0.00024658,2]
[426486014,1782453046000,-262.725384,0.00024658,2]
[426486015,1782453046000,-262.725384,0.00024658,2]
[426486026,1782453046000,-5241.3,0.00024728,2]
[426486018,1782453046000,-500.0,0.00024658,2]
[426486025,1782453046000,-2766.67,0.00024704,7]
[426486016,1782453046000,-262.725384,0.00024658,2]
[426486022,1782453046000,-500.0,0.00024658,2]
[426486020,1782453046000,-500.0,0.00024658,2]
[426486017,1782453046000,-262.725384,0.00024658,2]
[426486021,1782453046000,-500.0,0.00024658,2]
[426486019,1782453046000,-500.0,0.00024658,2]
[426486024,1782453046000,-5241.31,0.00024684,2]
[426486023,1782453046000,-174.45375518,0.00024658,2]
[426486029,1782453046000,-1500.0,0.00024771,2]
[426486055,1782453046000,-583.96315275,0.00024897,2]
[426486078,1782453046000,-341.15774898,0.00025,2]
[426486058,1782453046000,-305.53727922,0.00024897,2]
[426486095,1782453046000,-503.31074424,0.00025731,2]
[426486092,1782453046000,-514.62191765,0.00025659,2]
[426486094,1782453046000,-522.08607949,0.00025731,2]
[426486091,1782453046000,-50000.0,0.000255,2]
[426486093,1782453046000,-264.99106417,0.00025731,2]
[426486096,1782453046000,-730.1751751,0.00025731,2]